bitfinex/quotes_ETHUSD_20251122
["timestamp","ask_amount","ask_price","bid_price","bid_amount"]
[1763787083303,0.4632,2744.1,2743.3,0.47732004]
[1763787083447,0.2745,2743.4,2743.2,4.64920041]
[1763787083648,0.2745,2743.4,2743.2,4.77320041]
[1763787084186,0.002,2744.1,2743.2,4.77320041]
[1763787084368,0.187,2743.7,2743.2,4.77320041]
[1763787084876,0.6482,2743.7,2743.2,4.77320041]
[1763787085050,0.6482,2743.7,2743.3,0.47832004]
[1763787085666,0.187,2743.7,2743.3,0.47832004]
[1763787086205,0.4632,2744.1,2743.6,0.4853]
[1763787086376,0.4632,2744.1,2743.4,0.405504]
[1763787086696,0.002,2744.1,2743.6,4.64920041]
[1763787086882,0.002,2744.1,2743.7,0.46492004]
[1763787087478,0.002,2744.1,2743.8,3.802]
[1763787087657,0.002,2744.1,2743.9,3.802]
[1763787088695,0.002,2744.1,2744.0,3.802]
[1763787088857,0.002,2744.1,2744.0,4.1822]
[1763787089259,0.4632,2744.1,2744.0,4.1822]
[1763787090381,0.9244,2744.1,2744.0,3.802]
[1763787093294,0.9244,2744.1,2743.8,3.802]
[1763787093508,0.4612,2744.0,2743.8,3.802]
[1763787093715,0.4615,2743.9,2743.8,3.802]
[1763787094397,0.002,2744.1,2743.8,4.2873]
[1763787094616,0.002,2744.1,2743.9,0.91403]
[1763787096131,0.002,2744.1,2744.0,0.4607]
[1763787096285,0.002,2744.1,2744.0,5.69060041]
[1763787096485,0.002,2744.1,2744.0,6.09610441]
[1763787096701,0.002,2744.1,2744.0,9.89810441]
[1763787096990,0.002,2744.1,2744.0,11.57778785]
[1763787098119,0.002,2744.1,2744.0,12.48478049]
[1763787098609,0.002,2744.1,2744.0,16.12909535]
[1763787098943,0.002,2744.1,2744.0,16.22909535]
[1763787099085,0.002,2744.1,2744.0,12.58478049]
[1763787099285,0.002,2744.1,2744.0,12.67178049]
[1763787099710,0.002,2744.1,2744.0,16.31609535]
[1763787100817,0.002,2744.1,2744.0,12.67178049]
[1763787102225,0.002,2744.4,2744.3,5.11249664]
[1763787102430,0.002,2744.4,2744.3,6.0844463]
[1763787103608,0.1941,2745.3,2744.4,1.31249664]
[1763787103803,0.1941,2745.3,2744.8,4.64920041]
[1763787104133,0.6735,2745.3,2744.9,0.124]
[1763787104331,0.6735,2745.3,2745.0,0.47732004]
[1763787104497,0.4794,2745.2,2745.1,3.8]
[1763787104695,0.1941,2745.3,2745.1,3.8]
[1763787105033,0.9547,2745.2,2745.1,3.8]
[1763787108329,0.1941,2745.3,2745.1,3.8]
[1763787108562,0.1941,2745.3,2745.2,0.38]
[1763787108768,0.4794,2745.8,2745.2,5.48990041]
[1763787108950,0.4794,2746.1,2745.3,3.8]
[1763787109266,0.04552075,2746.0,2745.3,3.8]
[1763787109428,0.4753,2745.4,2745.3,3.8]
[1763787109628,0.4753,2745.4,2745.3,4.2304]
[1763787109830,0.4547,2745.4,2745.3,0.4304]
[1763787110059,1.02638078,2745.4,2745.1,0.124]
[1763787110264,1.02638078,2745.4,2744.5,1.31249664]
[1763787110565,0.57168078,2745.4,2744.5,0.90699264]
[1763787110769,0.57168078,2745.4,2744.6,0.124]
[1763787111869,0.4794,2745.3,2744.6,0.124]
[1763787112352,0.57168078,2745.4,2744.8,4.64920041]
[1763787112665,1.05108078,2745.4,2744.9,0.51059004]
[1763787112962,0.57168078,2745.4,2745.0,0.123]
[1763787113160,0.57168078,2745.4,2745.0,0.5797]
[1763787113863,0.57168078,2745.4,2745.0,0.123]
[1763787114064,0.57168078,2745.4,2745.3,0.4607]
[1763787114263,0.57168078,2745.4,2745.3,0.5837]
[1763787114468,0.57168078,2745.4,2745.3,1.15266004]
[1763787114667,0.57168078,2745.4,2745.3,2.92185668]
[1763787114869,0.187,2746.2,2745.4,0.405504]
[1763787115165,0.187,2746.2,2745.6,4.64920041]
[1763787115367,0.187,2746.2,2745.7,0.123]
[1763787115532,0.6664,2746.2,2745.7,0.60022004]
[1763787116095,0.4794,2746.1,2745.7,0.60022004]
[1763787117968,0.187,2746.2,2745.7,0.60022004]
[1763787118301,0.4794,2746.1,2745.7,0.60022004]
[1763787119374,0.187,2746.2,2745.7,1.05692004]
[1763787119581,0.187,2746.2,2745.8,0.57061205]
[1763787120419,0.57153734,2746.3,2745.8,0.57061205]
[1763787120770,0.57153734,2746.3,2745.8,1.02731205]
[1763787120970,0.57153734,2746.3,2746.2,0.4607]
[1763787121326,0.1941,2747.2,2746.2,0.5837]
[1763787121469,0.4794,2746.7,2746.2,0.66440004]
[1763787121665,0.57146543,2746.8,2746.5,4.64920041]
[1763787121971,0.76553263,2747.2,2746.7,0.4607]
[1763787122168,0.4794,2747.1,2746.5,4.64920041]
[1763787122389,0.2045,2746.7,2746.5,5.11412045]
[1763787122597,0.4794,2747.1,2746.6,0.123]
[1763787122799,0.76553263,2747.2,2746.6,0.5837]
[1763787123106,0.2045,2746.7,2746.5,5.11412045]
[1763787123408,0.002,2746.6,2746.1,4.64920041]
[1763787123608,0.0081,2747.0,2746.3,0.123]
[1763787123807,0.4753,2746.4,2746.3,0.123]
[1763787124186,0.6839,2746.4,2746.3,0.123]
[1763787124589,0.6839,2746.4,2745.8,0.57061205]
[1763787124790,0.4794,2746.3,2746.0,0.123]
[1763787125219,0.4794,2747.0,2746.2,0.4607]
[1763787125425,0.4794,2747.0,2746.4,4.64920041]
[1763787125579,1.21883263,2747.2,2746.5,0.123]
[1763787125923,0.4533,2747.1,2746.8,4.64920041]
[1763787126124,0.76553263,2747.2,2746.9,0.46492004]
[1763787126416,0.76553263,2747.2,2746.9,0.58792004]
[1763787126716,0.2304,2747.0,2746.9,0.58792004]
[1763787127302,0.76553263,2747.2,2746.9,0.58792004]
[1763787127918,1.21883263,2747.2,2746.9,0.58792004]
[1763787128116,1.21883263,2747.2,2747.0,0.52371205]
[1763787128423,0.4533,2747.1,2747.0,0.52371205]
[1763787128620,0.76553263,2747.2,2747.0,0.52371205]
[1763787128822,0.1941,2748.6,2747.2,0.405504]
[1763787129025,0.57110475,2747.8,2747.4,0.405504]
[1763787129319,0.57110475,2747.8,2747.3,5.24550041]
[1763787129320,0.1846,2747.9,2747.5,0.56510044]
[1763787129521,0.4533,2748.4,2747.5,1.02440044]
[1763787129733,0.4533,2748.4,2747.7,4.64920041]
[1763787129924,0.4533,2748.4,2747.7,4.77220041]
[1763787130745,0.4533,2748.4,2747.7,4.64920041]
[1763787131037,0.4267,2747.8,2747.5,0.123]
[1763787131239,0.0024,2747.6,2747.5,0.123]
[1763787131609,0.1478,2747.9,2747.5,0.123]
[1763787131807,0.2785,2747.6,2747.2,4.64920041]
[1763787132021,0.2785,2747.6,2747.4,0.123]
[1763787132221,0.4533,2748.4,2747.6,0.405504]
[1763787132450,0.4533,2748.4,2747.8,0.4733]
[1763787132766,0.4533,2748.4,2747.8,0.5963]
[1763787132909,0.4533,2749.0,2747.8,1.62070044]
[1763787133231,0.1846,2748.9,2748.1,4.64920041]
[1763787133548,0.1846,2748.9,2748.2,0.123]
[1763787133549,0.6379,2748.9,2748.2,0.123]
[1763787133764,0.1846,2748.9,2748.2,0.3136]
[1763787133966,0.4533,2749.4,2748.6,0.405504]
[1763787134172,0.4533,2749.4,2748.7,0.123]
[1763787134818,0.1941,2749.5,2748.8,0.405504]
[1763787135242,0.2515,2748.9,2748.7,0.64077044]
[1763787135546,0.6474,2749.5,2748.7,0.64077044]
[1763787135842,0.4533,2749.4,2748.7,0.64077044]
[1763787136244,0.4533,2749.4,2748.5,4.64920041]
[1763787136245,0.4361,2748.8,2748.5,0.123]
[1763787136419,0.4512,2749.2,2748.5,0.123]
[1763787137244,0.6474,2749.5,2748.6,0.405504]
[1763787137446,0.1846,2750.1,2748.7,0.56370044]
[1763787137644,0.4533,2749.7,2748.8,0.405504]
[1763787137810,0.4533,2749.7,2748.9,0.123]
[1763787138210,0.4533,2749.7,2748.9,4.64920041]
[1763787138449,0.4533,2749.7,2749.0,0.123]
[1763787138672,0.4533,2749.7,2749.1,0.52315004]
[1763787139134,0.2609,2749.2,2749.1,0.52315004]
[1763787139463,0.2609,2749.2,2749.0,0.123]
[1763787139668,0.4533,2749.7,2749.0,0.123]
[1763787140558,0.2609,2749.1,2748.7,0.56370044]
[1763787140767,0.2609,2749.1,2748.7,0.123]
[1763787141272,0.1846,2750.1,2748.7,0.123]
[1763787141273,0.4533,2749.7,2749.0,0.4733]
[1763787142035,0.1846,2750.1,2749.1,0.123]
[1763787142234,0.5708037,2749.6,2749.1,0.123]
[1763787142473,0.4533,2750.0,2749.1,0.123]
[1763787142772,0.2609,2749.2,2749.1,0.123]
[1763787143269,0.7122,2749.2,2748.8,0.123]
[1763787143673,0.7122,2749.2,2748.6,0.123]
[1763787143846,0.57081679,2749.4,2748.6,0.123]
[1763787144174,0.57081679,2749.4,2748.8,0.405504]
[1763787145050,0.57081679,2749.4,2748.8,0.4593]
[1763787145433,0.4533,2749.6,2748.8,0.4593]
[1763787145835,0.4533,2749.6,2748.9,0.123]
[1763787146580,0.4533,2749.6,2748.9,0.4377504]
[1763787146785,0.2609,2749.0,2748.8,0.123]
[1763787146950,0.4533,2749.6,2748.8,0.123]
[1763787147143,0.2609,2748.9,2748.3,0.405504]
[1763787147348,0.2609,2748.9,2748.2,5.09466628]
[1763787147349,0.4455,2748.9,2748.2,0.1906]
[1763787147681,0.4513,2748.8,2748.3,0.123]
[1763787148185,0.4513,2748.8,2747.9,0.4593]
[1763787148350,0.4513,2748.8,2748.0,0.53633663]
[1763787148550,0.4513,2748.8,2748.1,0.123]
[1763787149070,0.2628,2748.2,2747.5,0.4593]
[1763787149271,0.2628,2748.2,2747.5,1.36629264]
[1763787149471,0.7122,2748.2,2747.6,0.123]
[1763787149843,0.4494,2748.1,2747.6,0.123]
[1763787150150,0.1713,2747.7,2747.2,0.55140044]
[1763787150345,0.1846,2748.0,2747.2,0.5823]
[1763787150570,0.1668,2747.9,2747.2,0.5823]
[1763787151268,0.1846,2748.4,2747.8,0.4733]
[1763787151981,0.4455,2747.9,2747.2,0.864804]
[1763787152183,0.4455,2747.9,2747.2,0.123]
[1763787152569,0.4513,2748.3,2747.3,0.4593]
[1763787152770,0.6379,2748.4,2747.4,0.405504]
[1763787152976,0.4533,2748.3,2747.4,0.405504]
[1763787153178,0.1846,2748.4,2747.3,0.405504]
[1763787153379,0.4533,2748.8,2748.3,0.4733]
[1763787153590,0.1846,2748.9,2748.3,0.4733]
[1763787153792,0.1846,2749.1,2748.4,0.4593]
[1763787153793,0.6379,2749.1,2748.4,0.4593]
[1763787154309,0.1846,2749.1,2748.4,0.4593]
[1763787154509,0.1846,2749.1,2748.5,0.123]
[1763787154676,0.4533,2749.4,2748.5,0.5823]
[1763787154677,0.1846,2749.3,2748.5,0.5823]
[1763787154871,0.1846,2749.3,2748.2,0.1906]
[1763787155072,0.4533,2749.2,2748.3,0.528504]
[1763787155972,0.1846,2749.3,2748.3,5.89627028]
[1763787156310,0.1846,2749.3,2748.4,1.07238703]
[1763787156519,0.1993,2749.5,2748.5,0.869204]
[1763787156876,0.1993,2749.5,2748.7,0.405504]
[1763787157094,0.1846,2750.1,2748.9,0.405504]
[1763787157340,0.4904,2749.8,2748.9,0.869204]
[1763787158110,0.4904,2749.8,2749.0,0.4637]
[1763787158318,0.1846,2750.1,2749.0,0.4637]
[1763787158476,0.675,2750.1,2749.1,0.57732703]
[1763787158679,0.675,2750.1,2749.2,0.405504]
[1763787158880,0.4904,2750.0,2749.1,0.57732703]
[1763787159080,0.4904,2750.0,2749.3,0.123]
[1763787159518,0.002,2749.8,2749.3,0.123]
[1763787159824,0.4924,2749.8,2749.2,0.123]
[1763787160519,0.4924,2749.8,2748.8,0.405504]
[1763787160823,0.4924,2749.8,2749.1,0.123]
[1763787161515,0.002,2749.8,2749.1,0.123]
[1763787161719,0.4924,2749.8,2749.1,0.62570663]
[1763787162498,0.002,2749.8,2749.2,0.869204]
[1763787165249,0.002,2749.8,2749.2,0.405504]
[1763787165543,0.002,2749.8,2749.4,0.405504]
[1763787165842,0.002,2749.8,2749.7,0.901904]
[1763787166446,0.002,2749.8,2749.7,6.26967028]
[1763787166743,0.002,2749.8,2749.7,7.17666292]
[1763787167311,0.002,2749.8,2749.7,7.29966292]
[1763787168154,0.002,2749.8,2749.7,11.03642329]
[1763787168362,0.002,2749.8,2749.7,12.19779832]
[1763787168508,0.002,2749.8,2749.7,8.56103795]
[1763787168729,0.002,2749.8,2749.7,12.19779832]
[1763787168967,0.1846,2751.1,2749.7,12.19779832]
[1763787168968,0.1846,2751.1,2750.0,0.1]
[1763787169168,0.1846,2751.1,2750.4,0.405504]
[1763787169377,0.4904,2751.4,2750.5,1.28865703]
[1763787169662,0.1846,2752.0,2750.7,5.30957028]
[1763787169890,0.4904,2751.6,2750.7,5.30957028]
[1763787170057,0.4904,2751.6,2750.7,5.77327028]
[1763787170437,0.4904,2751.6,2750.8,0.4637]
[1763787170622,0.57032956,2751.4,2750.9,0.70032703]
[1763787171171,0.4904,2751.6,2751.0,0.4637]
[1763787171338,0.4904,2751.9,2751.0,0.4637]
[1763787171541,0.57029663,2751.6,2751.0,0.4637]
[1763787171740,0.4904,2751.9,2751.0,0.4637]
[1763787171927,0.57028397,2751.7,2751.0,0.20710197]
[1763787172125,0.57028397,2751.7,2750.9,0.123]
[1763787172339,0.57028397,2751.7,2751.0,0.4637]
[1763787172944,0.1846,2752.0,2751.1,0.405504]
[1763787173145,0.1846,2752.0,2751.4,4.90406628]
[1763787173359,0.1846,2752.0,2750.7,1.37069264]
[1763787173360,0.1804,2751.5,2750.7,1.37069264]
[1763787173547,0.1846,2752.0,2751.1,0.405504]
[1763787173750,0.1993,2752.2,2751.5,0.405504]
[1763787173959,0.1993,2752.4,2751.6,0.123]
[1763787174371,0.1993,2752.4,2751.6,0.5867]
[1763787174673,0.1993,2752.4,2751.7,0.4637]
[1763787175639,0.4904,2752.3,2751.3,0.4637]
[1763787175834,0.4904,2752.3,2751.5,0.123]
[1763787176039,0.4904,2752.2,2751.5,0.123]
[1763787176235,0.1658,2751.6,2751.5,0.123]
[1763787176441,0.3648,2751.6,2751.3,0.123]
[1763787176862,0.8523,2751.6,2751.3,0.123]
[1763787177146,0.8523,2751.6,2751.2,0.123]
[1763787177657,0.8523,2751.6,2750.6,0.4637]
[1763787177658,0.4875,2751.3,2750.6,0.4637]
[1763787177856,0.169,2751.5,2750.7,0.5867]
[1763787178164,0.169,2751.5,2750.8,0.123]
[1763787178488,0.4843,2750.9,2750.7,0.123]
[1763787178672,0.4843,2750.9,2750.1,0.4637]
[1763787178673,0.6836,2750.9,2750.1,0.4637]
[1763787178859,0.8558,2750.9,2750.2,0.123]
[1763787179062,0.1722,2750.8,2750.3,0.123]
[1763787179368,0.1993,2750.9,2750.3,0.123]
[1763787179749,0.4904,2751.4,2750.3,0.5867]
[1763787179960,0.4904,2751.4,2750.4,0.4637]
[1763787180696,0.199,2751.6,2750.5,0.405504]
[1763787180885,1.06259552,2752.2,2751.5,0.6849]
[1763787181200,1.06259552,2752.2,2751.5,0.123]
[1763787181501,1.06259552,2752.2,2751.4,0.123]
[1763787181502,0.6917,2751.6,2751.4,0.123]
[1763787181794,0.6917,2751.6,2750.8,0.4637]
[1763787181969,0.6917,2751.6,2750.9,0.123]
[1763787182397,0.1639,2751.5,2750.9,0.123]
[1763787182772,0.1639,2751.5,2750.7,0.123]
[1763787182972,0.1639,2751.5,2750.0,4.90406628]
[1763787183173,0.1639,2751.5,2750.2,0.123]
[1763787183561,0.1639,2751.5,2749.8,0.001]
[1763787183765,0.1639,2751.5,2749.9,0.5867]
[1763787184085,0.1639,2751.5,2750.0,0.123]
[1763787184598,0.1639,2751.5,2750.1,0.1885]
[1763787184961,0.1639,2751.5,2750.1,0.6522]
[1763787185375,0.1639,2751.5,2749.8,0.001]
[1763787185575,0.1639,2751.5,2749.8,0.124]
[1763787185974,0.1639,2751.5,2749.8,5.47846628]
[1763787186181,0.1639,2751.5,2749.9,0.99824663]
[1763787186410,0.1639,2751.5,2750.0,0.405504]
[1763787186715,0.1639,2751.5,2750.0,0.4504]
[1763787187007,0.1639,2751.5,2750.1,0.1897]
[1763787187717,0.20932976,2751.5,2750.1,0.1897]
[1763787188004,0.1639,2751.5,2749.8,0.4514]
[1763787188212,0.496,2751.4,2749.9,0.123]
[1763787188368,0.496,2751.4,2749.9,0.5734]
[1763787188574,0.496,2751.4,2749.9,0.123]
[1763787189016,0.496,2751.4,2749.9,0.5734]
[1763787189176,0.496,2751.4,2750.0,0.4504]
[1763787189505,0.57049726,2751.1,2750.0,0.4504]
[1763787189721,0.57049726,2751.1,2750.1,0.123]
[1763787189922,1.06649726,2751.1,2750.1,0.3127]
[1763787190303,0.57049726,2751.1,2750.1,0.7631]
[1763787190499,0.496,2751.0,2750.1,0.7631]
[1763787190732,0.496,2751.0,2750.1,0.123]
[1763787191028,0.1083,2750.9,2750.1,0.7631]
[1763787191528,0.6043,2750.9,2750.1,0.123]
[1763787191729,0.6043,2750.9,2749.8,0.4514]
[1763787192232,0.6043,2750.9,2749.9,0.123]
[1763787192830,0.6043,2750.9,2749.9,0.5734]
[1763787192989,0.1083,2750.9,2750.0,0.855904]
[1763787193192,0.1083,2750.9,2750.1,0.1897]
[1763787193392,0.1083,2750.9,2749.8,0.001]
[1763787193393,0.2508,2750.2,2749.9,0.123]
[1763787193803,0.2508,2750.2,2749.8,0.001]
[1763787194128,0.7444,2750.2,2749.8,0.001]
[1763787194721,0.2508,2750.2,2749.8,0.001]
[1763787195525,0.4936,2750.5,2749.8,0.001]
[1763787196507,0.1083,2750.9,2749.9,3.8]
[1763787196706,0.6043,2750.9,2750.0,4.22514]
[1763787197632,0.6043,2750.9,2750.1,0.1897]
[1763787197803,0.1083,2750.9,2750.2,3.8]
[1763787198133,0.1083,2750.9,2750.3,3.8]
[1763787198308,0.002,2751.5,2750.3,3.8]
[1763787198309,0.496,2751.4,2750.4,0.123]
[1763787198504,0.496,2751.4,2750.5,0.3923]
[1763787198833,0.496,2751.4,2750.6,3.8]
[1763787199533,0.496,2751.4,2750.6,3.923]
[1763787199697,0.496,2751.4,2750.6,4.3734]
[1763787200209,0.496,2751.4,2750.6,3.923]
[1763787200405,0.496,2751.4,2750.6,3.8]
[1763787200831,0.3597,2750.7,2750.6,3.8]
[1763787201031,0.8527,2750.7,2750.6,3.8]
[1763787201328,0.3597,2750.7,2750.6,3.8]
[1763787201732,0.1676,2750.7,2750.6,3.8]
[1763787202030,0.1923,2750.9,2750.4,3.8]
[1763787202230,0.1923,2750.9,2750.4,4.1923]
[1763787202432,0.1676,2750.5,2750.4,3.8]
[1763787202859,0.1676,2750.5,2750.1,0.123]
[1763787203907,0.6603,2750.5,2750.1,0.123]
[1763787204142,0.0049,2750.2,2749.9,0.123]
[1763787204327,0.0049,2750.2,2749.9,0.5154]
[1763787204947,0.0049,2750.2,2749.9,0.123]
[1763787205244,0.6883,2750.9,2750.1,0.6826]
[1763787205643,0.6883,2750.9,2749.9,0.123]
[1763787205644,0.496,2750.8,2749.9,0.123]
[1763787207229,0.496,2750.8,2749.8,0.001]
[1763787208020,0.1923,2750.9,2749.9,0.405504]
[1763787208218,0.496,2751.1,2749.9,0.405504]
[1763787208423,0.496,2751.1,2750.0,0.4504]
[1763787208756,0.496,2751.1,2750.1,0.1897]
[1763787208908,0.496,2751.1,2750.2,0.64990976]
[1763787209109,0.496,2751.1,2750.2,1.10030976]
[1763787210686,0.496,2751.1,2750.2,0.123]
[1763787210863,0.496,2751.1,2750.3,0.4504]
[1763787211666,0.496,2751.4,2750.3,0.4504]
[1763787211833,0.496,2751.3,2750.3,0.4504]
[1763787212031,0.002,2751.5,2750.4,5.03450157]
[1763787212230,0.498,2751.5,2750.5,0.99889016]
[1763787212463,0.002,2751.5,2750.6,0.4504]
[1763787212632,0.002,2751.5,2750.7,0.123]
[1763787213162,0.002,2751.5,2750.8,5.07939757]
[1763787213340,0.002,2751.5,2750.9,0.4504]
[1763787213675,0.002,2751.5,2751.0,0.50793976]
[1763787214470,0.002,2751.5,2751.0,0.95833976]
[1763787214831,0.002,2751.5,2751.1,0.4504]
[1763787215236,0.002,2751.5,2751.1,0.5734]
[1763787215454,0.002,2751.5,2751.1,0.123]
[1763787216139,0.002,2751.5,2751.1,0.5777]
[1763787216860,0.002,2751.5,2751.4,0.4578]
[1763787217035,0.5017,2751.5,2750.8,0.4547]
[1763787217458,0.5017,2751.5,2750.9,0.123]
[1763787218335,0.5017,2751.5,2750.5,1.9101828]
[1763787218534,0.5017,2751.5,2750.6,0.123]
[1763787218857,0.002,2751.5,2750.6,0.5777]
[1763787219044,0.002,2751.5,2750.7,0.20331828]
[1763787219244,0.002,2751.5,2750.7,0.65801828]
[1763787219567,0.002,2751.5,2750.8,4.62899757]
[1763787219740,0.002,2751.5,2750.8,5.08369757]
[1763787220064,0.5017,2751.5,2750.9,0.123]
[1763787220657,0.48201052,2751.5,2750.9,0.123]
[1763787220855,0.2338,2751.0,2750.1,0.1897]
[1763787221061,0.2338,2751.0,2750.2,0.123]
[1763787221256,0.1859,2750.9,2750.2,0.123]
[1763787221775,0.1859,2750.9,2750.1,0.6444]
[1763787221956,0.1859,2750.9,2750.2,0.123]
[1763787222159,1.12342288,2751.7,2750.2,0.5777]
[1763787222373,0.20304155,2751.6,2750.2,0.5777]
[1763787222538,0.78339571,2751.8,2750.2,0.5777]
[1763787222742,0.34003105,2751.7,2750.2,0.5777]
[1763787222972,0.83973105,2751.7,2750.2,0.5777]
[1763787223299,0.4997,2751.7,2750.3,0.4547]
[1763787223448,0.4997,2751.6,2750.3,0.4547]
[1763787223648,0.4997,2751.6,2750.4,0.52066976]
[1763787224195,0.4997,2751.6,2750.4,0.97536976]
[1763787224339,0.4997,2751.6,2750.4,0.52066976]
[1763787224688,0.4997,2751.6,2750.4,0.123]
[1763787227119,0.4997,2751.6,2750.2,0.4547]
[1763787227516,0.4997,2751.6,2750.1,0.1897]
[1763787227670,0.34026884,2751.5,2750.1,0.1897]
[1763787228115,0.4997,2751.4,2750.1,0.1897]
[1763787228429,0.4997,2751.4,2750.0,0.123]
[1763787228587,0.4997,2751.4,2750.0,0.64376976]
[1763787228987,0.4997,2751.4,2750.0,0.52076976]
[1763787229177,0.4997,2751.4,2749.8,0.124]
[1763787229377,0.4997,2751.4,2749.8,0.5787]
[1763787229810,0.4997,2751.4,2749.9,0.4547]
[1763787231488,1.28364689,2751.4,2749.9,0.4547]
[1763787231690,0.4997,2751.4,2749.9,0.4547]
[1763787231927,0.4997,2751.3,2749.9,0.4547]
[1763787232223,0.4997,2751.3,2750.0,0.52076976]
[1763787232516,0.4997,2751.3,2749.9,0.4547]
[1763787234515,0.4997,2751.3,2749.9,5.08369757]
[1763787234971,0.4997,2751.3,2750.0,0.4547]
[1763787235405,0.4997,2751.3,2750.1,0.1993]
[1763787235608,0.4497,2751.3,2750.1,0.1993]
[1763787235912,0.4497,2751.3,2750.1,0.72759976]
[1763787236208,0.4497,2751.3,2750.1,1.18229976]
[1763787236639,0.4497,2751.3,2750.2,0.4547]
[1763787238413,0.4497,2751.3,2750.3,0.123]
[1763787238838,0.4497,2751.3,2750.4,0.4547]
[1763787239532,0.002,2751.5,2750.5,0.52066976]
[1763787239727,0.4997,2751.4,2750.5,0.52066976]
[1763787240838,0.4997,2751.4,2750.5,0.97536976]
[1763787241017,0.002,2751.5,2750.5,0.97536976]
[1763787241203,0.002,2751.5,2750.6,0.4547]
[1763787241608,0.002,2751.5,2750.7,4.62899757]
[1763787241809,0.002,2751.5,2750.8,0.63136976]
[1763787242004,0.002,2751.5,2751.4,0.4578]
[1763787242209,0.002,2751.5,2750.9,0.4547]
[1763787242805,0.002,2751.5,2751.4,0.4578]
[1763787244023,0.002,2751.5,2751.4,0.9125]
[1763787244838,0.7352,2751.5,2750.8,0.96306976]
[1763787245030,0.0027,2751.2,2750.6,0.4547]
[1763787245224,0.0027,2751.2,2750.6,0.5777]
[1763787245751,0.0027,2751.2,2750.4,4.62899757]
[1763787245928,0.0027,2751.2,2750.4,0.123]
[1763787245929,0.4707,2751.2,2750.4,0.123]
[1763787247740,0.4707,2751.2,2750.4,0.4826]
[1763787248258,0.57038976,2751.1,2750.4,0.4826]
[1763787249228,0.57038976,2751.1,2750.3,0.123]
[1763787249229,1.03838976,2751.1,2750.3,0.123]
[1763787249554,0.57038976,2751.1,2750.3,0.123]
[1763787249759,0.57038976,2751.1,2750.4,1.00605976]
[1763787250555,0.468,2751.0,2750.4,0.52345976]
[1763787250756,0.1859,2750.9,2750.2,0.123]
[1763787251843,0.1859,2750.9,2750.1,0.3223]
[1763787252179,0.6539,2750.9,2750.1,0.3223]
[1763787252526,0.6539,2750.9,2750.1,0.001]
[1763787252527,0.468,2750.8,2750.1,0.001]
[1763787253262,0.468,2750.8,2750.1,0.1829]
[1763787253845,0.468,2750.8,2750.1,0.001]
[1763787256574,0.2652,2750.2,2750.1,0.001]
[1763787257182,0.7312,2750.2,2750.1,0.001]
[1763787258462,1.30185392,2750.2,2750.1,0.001]
[1763787260112,0.83585392,2750.2,2750.1,0.001]
[1763787260414,1.30185392,2750.2,2750.1,0.001]
[1763787263205,0.7312,2750.2,2750.1,0.001]
[1763787265872,0.7312,2750.2,2749.8,0.001]
[1763787266115,0.1936,2749.9,2749.8,0.001]
[1763787266500,0.6616,2749.9,2749.5,0.001]
[1763787266699,0.2709,2749.6,2749.5,0.001]
[1763787267138,0.7389,2749.6,2749.5,0.001]
[1763787267433,0.1889,2749.9,2749.5,0.001]
[1763787267636,0.6569,2749.9,2749.5,0.001]
[1763787268410,0.4601,2749.6,2749.5,0.001]
[1763787268941,0.2833,2749.8,2749.5,0.001]
[1763787269897,0.1889,2749.9,2749.5,0.001]
[1763787270259,0.6569,2749.9,2749.5,0.001]
[1763787271737,0.468,2750.6,2749.8,0.4632]
[1763787272608,0.4644,2749.9,2749.7,3.8]
[1763787272902,0.4644,2749.9,2749.5,0.001]
[1763787274453,0.0047,2749.6,2749.5,0.001]
[1763787275521,0.655,2749.9,2749.5,0.001]
[1763787275720,0.4532,2750.2,2749.5,0.9731]
[1763787276560,0.4532,2750.2,2749.5,0.4858]
[1763787277119,0.4532,2750.2,2749.5,0.001]
[1763787277765,0.880004,2750.5,2749.5,0.4531]
[1763787277956,0.4745,2750.4,2749.6,3.8]
[1763787278155,0.51994793,2750.4,2749.6,3.8]
[1763787278457,0.4745,2750.4,2749.6,3.8]
[1763787279165,0.04544958,2750.3,2749.6,3.8]
[1763787279365,0.451,2749.7,2749.6,3.8]
[1763787279526,0.451,2749.7,2749.5,0.001]
[1763787279862,0.0096,2749.6,2749.5,0.001]
[1763787281046,0.58035245,2749.6,2749.5,0.001]
[1763787281748,1.05485245,2749.6,2749.5,0.001]
[1763787282163,0.57075245,2749.6,2749.5,0.001]
[1763787282362,0.57075245,2749.6,2749.5,1.3097]
[1763787282763,0.1902,2750.2,2749.5,1.3097]
[1763787283072,0.1902,2750.2,2749.5,0.9296]
[1763787283278,0.1902,2750.2,2749.5,0.92215]
[1763787283574,0.1902,2750.2,2749.6,0.4521]
[1763787283776,0.4745,2750.1,2749.4,3.8]
[1763787283933,0.1902,2750.2,2749.5,0.4521]
[1763787284135,0.6647,2750.2,2749.5,0.4521]
[1763787284556,0.4745,2750.5,2749.5,0.4521]
[1763787285038,1.25867746,2750.5,2749.5,0.4521]
[1763787285366,1.12487432,2750.4,2749.5,0.4521]
[1763787285576,0.4745,2750.5,2749.5,0.4521]
[1763787285743,0.57068748,2750.3,2749.5,0.4521]
[1763787286331,0.75369076,2750.3,2749.5,0.4521]